bitfinex-derivatives/quotes_BTCF0:USTF0_20250509
["timestamp","ask_amount","ask_price","bid_price","bid_amount"]
[1746830425542,0.93274064,103030.0,103020.0,0.67190227]
[1746830428349,0.86146334,103030.0,103020.0,0.67190227]
[1746830429648,0.86146334,103030.0,103020.0,0.67188207]
[1746830429843,0.88619162,103030.0,103020.0,0.67188207]
[1746830432242,0.88619162,103030.0,103020.0,0.70338207]
[1746830433442,0.88619162,103030.0,103020.0,0.50925477]
[1746830434150,0.88619162,103030.0,103020.0,0.70338207]
[1746830435045,0.88619162,103030.0,103020.0,0.70337147]
[1746830436951,0.88619162,103030.0,103020.0,0.70337041]
[1746830436952,0.96027932,103030.0,103020.0,0.70337041]
[1746830440553,0.96027932,103030.0,103020.0,0.70337189]
[1746830441154,0.96027932,103030.0,103020.0,0.73407189]
[1746830442355,0.96027932,103030.0,103020.0,0.7340726]
[1746830442546,0.96027932,103030.0,103020.0,0.7653726]
[1746830442743,1.03155662,103030.0,103020.0,0.7653726]
[1746830443657,0.96027932,103030.0,103020.0,0.7653726]
[1746830443858,1.03155662,103030.0,103020.0,0.7653726]
[1746830444046,1.03155662,103030.0,103020.0,0.5712453]
[1746830447957,1.03155662,103030.0,103020.0,0.2104453]
[1746830448159,1.03155662,103030.0,103020.0,0.5712453]
[1746830449056,1.03155662,103030.0,103020.0,0.7653726]
[1746830449658,0.95746892,103030.0,103020.0,0.7653726]
[1746830451161,0.95746892,103030.0,103020.0,0.4045726]
[1746830451359,0.95746892,103030.0,103020.0,0.7653726]
[1746830453466,1.08108562,103030.0,103020.0,0.7653726]
[1746830455163,1.08108562,103030.0,103020.0,0.76541054]
[1746830457171,1.08108562,103030.0,103020.0,0.57128324]
[1746830457466,1.02228969,103030.0,103020.0,0.57128324]
[1746830458072,1.02228969,103030.0,103020.0,0.76541054]
[1746830458672,1.02228969,103030.0,103020.0,0.76542212]
[1746830459769,1.02228969,103030.0,103020.0,0.57129482]
[1746830461770,1.02228969,103030.0,103020.0,0.76542212]
[1746830464465,1.02228969,103030.0,103020.0,0.57129482]
[1746830464668,1.02228969,103030.0,103020.0,0.50929482]
[1746830464876,1.45436699,103030.0,103020.0,0.11699482]
[1746830465068,1.57088699,103030.0,103020.0,0.11699482]
[1746830465576,0.1941461,103010.0,103000.0,0.28272]
[1746830465779,0.5754234,103010.0,103000.0,0.33047673]
[1746830465977,0.6672234,103010.0,103000.0,0.31481468]
[1746830466276,0.8272234,103010.0,103000.0,0.31481468]
[1746830466673,0.8272234,103010.0,103000.0,0.25661468]
[1746830468576,0.99095729,103010.0,103000.0,0.25261468]
[1746830468776,0.99095729,103010.0,103000.0,0.25461468]
[1746830469164,0.99095729,103010.0,103000.0,0.25261468]
[1746830470175,0.99095729,103010.0,103000.0,0.21981468]
[1746830470376,0.99095729,103010.0,103000.0,0.41397968]
[1746830470576,0.99095729,103010.0,103000.0,0.44607968]
[1746830470979,0.99823729,103010.0,103000.0,0.43112295]
[1746830471174,0.99823729,103010.0,103000.0,0.46302295]
[1746830471372,0.93330053,103010.0,103000.0,0.49532295]
[1746830474287,0.93330053,103010.0,103000.0,0.49332295]
[1746830474882,0.93330053,103010.0,103000.0,0.49132295]
[1746830475284,0.90855336,103010.0,103000.0,0.49132295]
[1746830475881,0.90855336,103010.0,103000.0,0.29715795]
[1746830476081,0.90855336,103010.0,103000.0,0.23295795]
[1746830476683,1.02507336,103010.0,103000.0,0.23295795]
[1746830477787,1.02507336,103010.0,103000.0,0.24772422]
[1746830481683,1.02507336,103010.0,103000.0,0.21562422]
[1746830481989,1.65303179,103010.0,103000.0,0.07847664]
[1746830482189,1.76959179,103010.0,103000.0,0.07847664]
[1746830484088,1.67250779,103010.0,103000.0,0.07847664]
[1746830484291,1.76959179,103010.0,103000.0,0.07847664]
[1746830485186,1.77359179,103010.0,103000.0,0.07847664]
[1746830485389,1.76449389,103010.0,103000.0,0.07847664]
[1746830485588,1.76749389,103010.0,103000.0,0.07847664]
[1746830485993,0.194165,103000.0,102990.0,0.03568078]
[1746830486291,1.2997196,103000.0,102990.0,0.13276344]
[1746830487592,1.3007196,103000.0,102990.0,0.13276344]
[1746830487789,1.31513217,103000.0,102990.0,0.00398078]
[1746830488489,1.31713217,103000.0,102990.0,0.00398078]
[1746830489595,1.41575139,103000.0,102990.0,0.00398078]
[1746830493404,1.4808857,103000.0,102990.0,0.00398078]
[1746830493896,1.4808857,103000.0,102990.0,0.03478078]
[1746830495101,1.4808857,103000.0,102990.0,0.06798078]
[1746830496203,1.3383311,103000.0,102990.0,0.16507287]
[1746830496496,1.5260884,103000.0,102990.0,0.19677287]
[1746830497493,1.5973657,103000.0,102990.0,0.19677287]
[1746830498498,1.5973657,103000.0,102990.0,0.20064794]
[1746830498903,1.2365657,103000.0,102990.0,0.20064794]
[1746830499199,1.5973657,103000.0,102990.0,0.20064794]
[1746830501794,1.5973657,103000.0,102990.0,0.16283934]
[1746830502004,1.5973657,103000.0,102990.0,0.00387507]
[1746830502202,1.5973657,103000.0,102990.0,0.00403343]
[1746830505305,1.5973657,103000.0,102990.0,0.03693343]
[1746830506108,1.5973657,103000.0,102990.0,0.06983343]
[1746830506617,1.5973657,103000.0,102990.0,0.10003343]
[1746830507910,1.74577909,103000.0,102990.0,0.10003343]
[1746830508314,1.60322449,103000.0,102990.0,0.10003343]
[1746830508504,1.74577909,103000.0,102990.0,0.10003343]
[1746830509116,1.71567909,103000.0,102990.0,0.19712552]
[1746830510415,1.71567909,103000.0,102990.0,0.2118722]
[1746830512015,1.71567909,103000.0,102990.0,0.21187261]
[1746830512217,1.74687909,103000.0,102990.0,0.21187261]
[1746830512415,1.69899027,103000.0,102990.0,0.21187261]
[1746830516119,1.62326239,103000.0,102990.0,0.21187261]
[1746830517822,1.63054239,103000.0,102990.0,0.21187261]
[1746830519822,1.70627027,103000.0,102990.0,0.21187261]
[1746830524025,1.70627027,103000.0,102990.0,0.21188279]
[1746830525024,1.34547027,103000.0,102990.0,0.21188279]
[1746830525227,1.70627027,103000.0,102990.0,0.21188279]
[1746830527318,1.55785688,103000.0,102990.0,0.21188279]
[1746830528914,1.62913418,103000.0,102990.0,0.0187907]
[1746830529118,0.1941838,102990.0,102980.0,0.0944]
[1746830529326,0.7629384,102990.0,102980.0,0.0944]
[1746830529526,0.7629384,102990.0,102980.0,0.19149209]
[1746830530125,0.8516611,102990.0,102980.0,0.19149209]
[1746830530324,0.8516611,102990.0,102980.0,0.19249209]
[1746830530927,0.8516611,102990.0,102980.0,0.19349209]
[1746830534927,1.02276681,102990.0,102980.0,0.19349209]
[1746830541032,1.02276681,102990.0,102980.0,0.20851257]
[1746830541624,1.02276681,102990.0,102980.0,0.21240599]
[1746830542028,1.02276681,102990.0,102980.0,0.21240609]
[1746830542430,1.38356681,102990.0,102980.0,0.21240609]
[1746830542632,1.40830458,102990.0,102980.0,0.21240609]
[1746830543833,1.40830458,102990.0,102980.0,0.21240635]
[1746830544331,1.47958188,102990.0,102980.0,0.11800635]
[1746830545633,1.47958188,102990.0,102980.0,0.11800652]
[1746830546830,1.47958188,102990.0,102980.0,0.21210652]
[1746830547032,1.40830458,102990.0,102980.0,0.21210652]
[1746830549333,1.40830458,102990.0,102980.0,0.21210816]
[1746830550534,1.04750458,102990.0,102980.0,0.21210816]
[1746830550928,1.04750458,102990.0,102980.0,0.19708551]
[1746830551133,1.04750458,102990.0,102980.0,0.21210835]
[1746830554536,1.04750458,102990.0,102980.0,0.21210955]
[1746830554737,1.40830458,102990.0,102980.0,0.21210955]
[1746830556346,1.40830458,102990.0,102980.0,0.21211013]
[1746830558136,1.40830458,102990.0,102980.0,0.21210634]
[1746830558938,1.40830458,102990.0,102980.0,0.18130634]
[1746830560240,1.04750458,102990.0,102980.0,0.18130634]
[1746830560436,1.40830458,102990.0,102980.0,0.21200634]
[1746830561743,1.40830458,102990.0,102980.0,0.21200659]
[1746830562846,1.38358735,102990.0,102980.0,0.21200659]
[1746830563037,1.02278735,102990.0,102980.0,0.21200659]
[1746830563544,1.02278735,102990.0,102980.0,0.21200572]
[1746830565346,1.02278735,102990.0,102980.0,0.21200659]
[1746830567144,1.02278735,102990.0,102980.0,0.21200663]
[1746830571844,1.04750458,102990.0,102980.0,0.21200663]
[1746830575551,0.95130458,102990.0,102980.0,0.21200663]
[1746830575751,0.68584348,102990.0,102980.0,1.56456663]
[1746830576156,0.35584348,102990.0,102980.0,1.56456542]
[1746830576345,0.55002728,102990.0,102980.0,1.56456542]
[1746830578356,0.55002728,102990.0,102980.0,1.31456542]
[1746830579660,0.43562121,102990.0,102980.0,1.41166541]
[1746830580762,0.43562121,102990.0,102980.0,1.31456542]
[1746830580963,0.43562121,102990.0,102980.0,1.41166541]
[1746830582366,0.24143741,102990.0,102980.0,1.05086541]
[1746830582661,0.24143741,102990.0,102980.0,1.77242108]
[1746830584563,0.16728,102990.0,102980.0,1.77235833]
[1746830586869,0.3614638,102990.0,102980.0,1.77235833]
[1746830587368,0.16728,102990.0,102980.0,1.77235833]
[1746830588060,0.20058,102990.0,102980.0,1.77235833]
[1746830588267,0.20058,102990.0,102980.0,1.77217213]
[1746830588969,0.3947638,102990.0,102980.0,1.77217213]
[1746830589969,0.3947638,102990.0,102980.0,1.77217089]
[1746830591059,0.3947638,102990.0,102980.0,1.6750709]
[1746830591258,0.3947638,102990.0,102980.0,1.77217089]
[1746830591462,0.3947638,102990.0,102980.0,1.77217071]
[1746830591963,0.3947638,102990.0,102980.0,1.05057071]
[1746830592269,0.3947638,102990.0,102980.0,1.77217071]
[1746830592664,0.3947638,102990.0,102980.0,1.67507072]
[1746830593671,0.3947638,102990.0,102980.0,1.67507182]
[1746830594071,0.3947638,102990.0,102980.0,0.95347182]
[1746830594258,0.3947638,102990.0,102980.0,1.67507182]
[1746830594769,0.3947638,102990.0,102980.0,0.95347182]
[1746830594971,0.3947638,102990.0,102980.0,1.67507182]
[1746830597271,0.3947638,102990.0,102980.0,1.67507526]
[1746830598872,0.3947638,102990.0,102980.0,1.60379796]
[1746830599064,0.4266638,102990.0,102980.0,1.67507526]
[1746830600673,0.4266638,102990.0,102980.0,1.32507526]
[1746830600971,0.4266638,102990.0,102980.0,1.32508513]
[1746830602571,0.4266638,102990.0,102980.0,1.3101635]
[1746830602771,0.4266638,102990.0,102980.0,1.32509357]
[1746830604472,0.4266638,102990.0,102980.0,1.32510724]
[1746830605574,0.41937939,102990.0,102980.0,1.32510724]
[1746830611083,0.4935368,102990.0,102980.0,1.32510724]
[1746830615383,0.4935368,102990.0,102980.0,1.32513179]
[1746830616183,0.48625239,102990.0,102980.0,1.32513179]
[1746830616683,0.48625239,102990.0,102980.0,1.32142038]
[1746830625698,0.48625239,102990.0,102980.0,1.31142038]
[1746830625990,0.48625239,102990.0,102980.0,1.54142038]
[1746830626391,0.48625239,102990.0,102980.0,1.54142047]
[1746830632781,0.48625239,102990.0,102980.0,1.47014317]
[1746830638899,0.48625239,102990.0,102980.0,1.54142047]
[1746830641899,0.48625239,102990.0,102980.0,1.54141902]
[1746830642694,0.51875239,102990.0,102980.0,1.54141902]
[1746830645599,0.51875239,102990.0,102980.0,1.54141867]
[1746830646597,0.51875239,102990.0,102980.0,1.47014137]
[1746830647400,0.51875239,102990.0,102980.0,1.47014139]
[1746830647600,0.48625239,102990.0,102980.0,1.47014139]
[1746830648000,0.51925239,102990.0,102980.0,1.47014139]
[1746830649100,0.51925239,102990.0,102980.0,1.47014142]
[1746830649296,0.48625239,102990.0,102980.0,1.54141872]
[1746830651101,0.48625239,102990.0,102980.0,0.81981872]
[1746830651401,0.48625239,102990.0,102980.0,1.54141872]
[1746830651602,0.48625239,102990.0,102980.0,1.54141888]
[1746830652604,0.48625239,102990.0,102980.0,0.81981888]
[1746830652798,0.48625239,102990.0,102980.0,1.54141888]
[1746830652998,0.51945239,102990.0,102980.0,1.54141888]
[1746830653707,0.48625239,102990.0,102980.0,1.54141888]
[1746830654106,0.48625239,102990.0,102980.0,0.81981888]
[1746830654408,0.48625239,102990.0,102980.0,1.54141888]
[1746830656300,0.48625239,102990.0,102980.0,1.52645209]
[1746830656506,0.48625239,102990.0,102980.0,1.54141918]
[1746830659105,0.48625239,102990.0,102980.0,1.47014188]
[1746830661701,0.29206859,102990.0,102980.0,1.47014188]
[1746830661903,0.29206859,102990.0,102980.0,1.47014187]
[1746830662301,0.48625239,102990.0,102980.0,1.47014187]
[1746830663209,0.29206859,102990.0,102980.0,1.47014187]
[1746830665408,0.29206859,102990.0,102980.0,1.47014214]
[1746830667612,0.48625239,102990.0,102980.0,1.47014214]
[1746830669305,0.29206859,102990.0,102980.0,1.47014214]
[1746830670012,0.29206859,102990.0,102980.0,0.74854214]
[1746830670208,0.29206859,102990.0,102980.0,1.47014214]
[1746830674908,0.29206859,102990.0,102980.0,0.74854214]
[1746830675115,0.29206859,102990.0,102980.0,1.47014214]
[1746830681717,0.29206859,102990.0,102980.0,1.47014234]
[1746830683018,0.29206859,102990.0,102980.0,1.54141964]
[1746830685221,0.29206859,102990.0,102980.0,1.54141979]
[1746830688923,0.29206859,102990.0,102980.0,1.54141953]
[1746830692324,0.29206859,102990.0,102980.0,1.52645209]
[1746830692527,0.32216859,102990.0,102980.0,1.54142025]
[1746830697732,0.32216859,102990.0,102980.0,1.52645209]
[1746830697933,0.32216859,102990.0,102980.0,1.54141959]
[1746830699737,0.32216859,102990.0,102980.0,1.42513959]
[1746830699927,0.32216859,102990.0,102980.0,1.65677959]
[1746830702540,0.32216859,102990.0,102980.0,1.65677976]
[1746830704940,0.32216859,102990.0,102980.0,1.42513976]
[1746830705146,0.32216859,102990.0,102980.0,1.65673976]
[1746830706345,0.32216859,102990.0,102980.0,1.65674028]
[1746830707946,0.24801118,102990.0,102980.0,1.65674028]
[1746830708151,0.24801118,102990.0,102980.0,1.65674036]
[1746830709959,0.24801118,102990.0,102980.0,1.65674054]
[1746830711656,0.24801118,102990.0,102980.0,1.65674085]
[1746830712055,0.24801118,102990.0,102980.0,1.66044606]
[1746830712756,0.21791118,102990.0,102980.0,1.66044606]
[1746830713147,0.21791118,102990.0,102980.0,1.58916876]
[1746830713351,0.29206859,102990.0,102980.0,1.58916876]
[1746830713555,0.29206859,102990.0,102980.0,1.66044606]
[1746830714157,0.29206859,102990.0,102980.0,1.66044496]
[1746830714861,0.29206859,102990.0,102980.0,0.93884496]
[1746830715054,0.29206859,102990.0,102980.0,1.66044496]
[1746830715461,0.29206859,102990.0,102980.0,1.66044444]
[1746830717264,0.29206859,102990.0,102980.0,1.66044421]
[1746830719068,0.29206859,102990.0,102980.0,1.66044394]
[1746830719469,0.28478406,102990.0,102980.0,1.66044394]
[1746830719969,0.28478406,102990.0,102980.0,1.65673873]
[1746830722570,0.28478406,102990.0,102980.0,1.6567388]
[1746830724468,0.28478406,102990.0,102980.0,1.65673883]
[1746830725265,0.28478406,102990.0,102980.0,1.58546153]
[1746830725465,0.28478406,102990.0,102980.0,1.65673883]
[1746830725765,0.28478406,102990.0,102980.0,1.58546153]
[1746830725971,0.28478406,102990.0,102980.0,1.65673883]
[1746830726770,0.28478406,102990.0,102980.0,1.65673948]
[1746830729772,0.28478406,102990.0,102980.0,1.65673723]
[1746830731274,0.28478406,102990.0,102980.0,1.65665723]
[1746830731668,0.28478406,102990.0,102980.0,1.65665719]
[1746830732075,0.28478406,102990.0,102980.0,1.42513719]
[1746830732275,0.28478406,102990.0,102980.0,1.65665719]
[1746830732474,0.21062665,102990.0,102980.0,1.65665719]
[1746830733375,0.21062665,102990.0,102980.0,1.65665737]
[1746830735171,0.21062665,102990.0,102980.0,1.65665744]
[1746830735876,1e-08,102990.0,102980.0,1.72793474]
[1746830736079,0.20323396,103000.0,102990.0,0.1941838]
[1746830736374,0.51323396,103000.0,102990.0,0.78140915]
[1746830736581,0.64641126,103000.0,102990.0,0.66564915]
[1746830736872,0.84057626,103000.0,102990.0,0.87850589]
[1746830737078,0.57513396,103000.0,102990.0,0.87850589]
[1746830737378,0.73613396,103000.0,102990.0,0.87850589]
[1746830737775,1.00157626,103000.0,102990.0,0.87850589]
[1746830737976,1.00257626,103000.0,102990.0,0.87850589]
[1746830738176,0.93129896,103000.0,102990.0,0.87850589]
[1746830739080,0.93129896,103000.0,102990.0,0.76274589]
[1746830740081,0.83242241,103000.0,102990.0,0.76274589]
[1746830740482,0.83242241,103000.0,102990.0,0.76274104]
[1746830741682,0.83242241,103000.0,102990.0,0.87846104]
[1746830744086,0.758265,103000.0,102990.0,0.87845923]
[1746830744379,0.758265,103000.0,102990.0,0.78275923]
[1746830744380,0.8295423,103000.0,102990.0,0.78275923]
[1746830745582,0.8295423,103000.0,102990.0,0.66703923]
[1746830745778,0.9008196,103000.0,102990.0,0.47285543]
[1746830745980,0.9008196,103000.0,102990.0,0.67073782]
[1746830746979,0.9008196,103000.0,102990.0,0.6557839]
[1746830747183,0.9008196,103000.0,102990.0,0.67073774]
[1746830747680,0.9008196,103000.0,102990.0,0.67073707]
[1746830748184,0.97497701,103000.0,102990.0,0.67073707]
[1746830750180,0.97497701,103000.0,102990.0,0.47655327]
[1746830750385,1.33577701,103000.0,102990.0,0.11575327]
[1746830752278,1.36049615,103000.0,102990.0,0.11575327]
[1746830753087,1.36049615,103000.0,102990.0,0.1157485]
[1746830754385,1.47621615,103000.0,102990.0,0.1157485]
[1746830756989,1.59981184,103000.0,102990.0,0.1157485]
[1746830758481,1.59981184,103000.0,102990.0,0.11574195]
[1746830760293,1.59981184,103000.0,102990.0,0.11574076]
[1746830760982,1.59981184,103000.0,102990.0,0.30992456]
[1746830761182,1.47621615,103000.0,102990.0,0.30992456]
[1746830762593,1.47621615,103000.0,102990.0,0.11574076]
[1746830763088,1.33366155,103000.0,102990.0,0.11574076]
[1746830763595,1.47621615,103000.0,102990.0,0.11574076]
[1746830764977,1.47621615,103000.0,102990.0,0.1008001]
[1746830765183,1.47621615,103000.0,102990.0,0.11573899]
[1746830766881,1.47621615,103000.0,102990.0,0.11573958]
[1746830768594,1.47621615,103000.0,102990.0,0.11574095]
[1746830770391,1.47621615,103000.0,102990.0,0.11574248]
[1746830771798,1.54106832,103000.0,102990.0,0.11574248]
[1746830773089,1.18026832,103000.0,102990.0,0.11574248]
[1746830773289,1.54106832,103000.0,102990.0,0.11574248]
[1746830774097,1.54106832,103000.0,102990.0,0.11574816]
[1746830777701,1.54106832,103000.0,102990.0,0.11569502]
[1746830777893,1.54306832,103000.0,102990.0,0.11569502]
[1746830779204,1.54206832,103000.0,102990.0,0.11569502]
[1746830779398,1.54406832,103000.0,102990.0,0.11569502]
[1746830781299,1.54406832,103000.0,102990.0,0.1008001]
[1746830781508,1.54406832,103000.0,102990.0,0.11569723]
[1746830783110,1.69249497,103000.0,102990.0,0.11569723]
[1746830784411,1.69249497,103000.0,102990.0,0.21119723]
[1746830786713,1.69249497,103000.0,102990.0,0.1963001]
[1746830786912,1.69249497,103000.0,102990.0,0.21119795]
[1746830788616,1.69249497,103000.0,102990.0,0.2111988]
[1746830790417,1.54406832,103000.0,102990.0,0.21119805]
[1746830791916,1.54406832,103000.0,102990.0,0.17919805]
[1746830792215,1.54406832,103000.0,102990.0,0.17919108]
[1746830792416,1.54406832,103000.0,102990.0,0.14789108]
[1746830793619,1.54406832,103000.0,102990.0,0.11569108]
[1746830794010,1.54406832,103000.0,102990.0,0.11569203]
[1746830794513,1.54406832,103000.0,102990.0,0.11569022]
[1746830795822,1.54406832,103000.0,102990.0,0.11569167]
[1746830796820,1.55134832,103000.0,102990.0,0.11569167]
[1746830797813,1.55134832,103000.0,102990.0,0.20989167]
[1746830798221,1.57617928,103000.0,102990.0,0.20989167]
[1746830799423,1.57617928,103000.0,102990.0,0.20989885]
[1746830800121,1.57617928,103000.0,102990.0,0.40408265]
[1746830803025,1.57617928,103000.0,102990.0,0.40408006]
[1746830806627,1.57617928,103000.0,102990.0,0.40408037]
[1746830807622,1.46045928,103000.0,102990.0,0.40408037]
[1746830807925,0.89520468,103000.0,102990.0,0.76488037]
[1746830808123,0.67083968,103000.0,102990.0,0.95183767]
[1746830808320,0.36083968,103000.0,102990.0,0.96183767]
[1746830808521,0.36083968,103000.0,102990.0,0.95813908]
[1746830808922,0.35783968,103000.0,102990.0,0.95813908]
[1746830809127,0.19783968,103000.0,102990.0,0.95813908]
[1746830809924,0.19883968,103000.0,102990.0,0.96213908]
[1746830810123,0.19783968,103000.0,102990.0,0.96213908]
[1746830810322,0.19783968,103000.0,102990.0,0.96211902]
[1746830811028,0.19683968,103000.0,102990.0,0.96211902]
[1746830811227,0.19683968,103000.0,102990.0,0.96511902]
[1746830811631,0.08238399,103000.0,102990.0,0.96511902]
[1746830814430,0.24238399,103000.0,102990.0,0.96511902]
[1746830815231,0.16828,103000.0,102990.0,0.96511902]
[1746830818526,0.19948,103000.0,102990.0,0.96511902]
[1746830820833,0.19948,103000.0,102990.0,0.96509323]
[1746830821034,0.4649223,103000.0,102990.0,0.89381593]
[1746830821229,0.8961996,103000.0,102990.0,0.76813593]
[1746830821435,0.9610996,103000.0,102990.0,0.21315213]
[1746830821632,0.9610996,103000.0,102990.0,0.40733593]
[1746830821934,0.9610996,103000.0,102990.0,0.77181555]
[1746830822230,0.9610996,103000.0,102990.0,0.76813771]
[1746830822426,0.9610996,103000.0,102990.0,0.77181462]
[1746830823935,0.9610996,103000.0,102990.0,0.72695244]
[1746830824134,0.9610996,103000.0,102990.0,0.74181499]
[1746830824935,1.05990492,103000.0,102990.0,0.74181499]
[1746830825738,1.05990492,103000.0,102990.0,0.74181576]
[1746830827235,1.05990492,103000.0,102990.0,0.38101576]
[1746830827427,1.05990492,103000.0,102990.0,0.77361576]
[1746830827928,1.05990492,103000.0,102990.0,0.74181576]
[1746830829030,1.05990492,103000.0,102990.0,0.77361576]
[1746830829435,1.05990492,103000.0,102990.0,0.77361795]
[1746830830233,0.98862762,103000.0,102990.0,0.77361795]
[1746830830637,0.98862762,103000.0,102990.0,0.41281795]
[1746830831137,0.98862762,103000.0,102990.0,0.41281352]
[1746830831336,0.98862762,103000.0,102990.0,0.77361352]
[1746830831834,1.06259918,103000.0,102990.0,0.77361352]
[1746830832137,1.06259918,103000.0,102990.0,0.75875244]
[1746830832337,1.06259918,103000.0,102990.0,0.77361478]
[1746830833038,1.06259918,103000.0,102990.0,0.77361537]
[1746830834938,0.98862762,103000.0,102990.0,0.77361537]
[1746830835840,1.05990492,103000.0,102990.0,0.77361537]
[1746830838943,1.05990492,103000.0,102990.0,0.74181537]
[1746830839339,1.2235421,103000.0,102990.0,0.74181537]
[1746830840243,1.2235421,103000.0,102990.0,0.74181985]
[1746830841646,1.1522648,103000.0,102990.0,0.74181985]
[1746830842547,1.2235421,103000.0,102990.0,0.74181985]
[1746830842751,1.2235421,103000.0,102990.0,0.77271985]
[1746830843548,1.18341157,103000.0,102990.0,0.77271985]
[1746830843850,1.18341157,103000.0,102990.0,0.77272428]
[1746830844647,1.11213427,103000.0,102990.0,0.77272428]
[1746830845548,1.11213427,103000.0,102990.0,0.75785244]
[1746830845746,1.11213427,103000.0,102990.0,0.77272891]
[1746830846050,1.18341157,103000.0,102990.0,0.67762891]
[1746830846349,1.18341157,103000.0,102990.0,0.31682891]
[1746830847450,1.18341157,103000.0,102990.0,0.31683453]
[1746830847750,1.05990492,103000.0,102990.0,0.31683453]
[1746830849253,1.05990492,103000.0,102990.0,0.31684738]
[1746830852948,1.0012315,103000.0,102990.0,0.41154738]
[1746830853154,1.12473815,103000.0,102990.0,0.41154738]
[1746830854556,1.12473815,103000.0,102990.0,0.41154526]
[1746830855954,1.12473815,103000.0,102990.0,0.18706146]
[1746830856151,1.12473815,103000.0,102990.0,0.38124526]
[1746830856356,1.12473815,103000.0,102990.0,0.31684502]
[1746830858058,1.48553815,103000.0,102990.0,0.31684502]
[1746830859951,1.48553815,103000.0,102990.0,0.31684134]
[1746830861756,1.48553815,103000.0,102990.0,0.31684006]
[1746830862752,1.48553815,103000.0,102990.0,0.41204006]
[1746830864262,1.12473815,103000.0,102990.0,0.41204006]
[1746830865460,1.12473815,103000.0,102990.0,0.41203912]
[1746830866956,1.12473815,103000.0,102990.0,0.41203928]
[1746830869064,1.12473815,103000.0,102990.0,0.41203955]
[1746830869260,0.91728355,103000.0,102990.0,0.41203955]
[1746830869465,0.91728355,103000.0,102990.0,0.77283955]
[1746830869856,0.91100355,103000.0,102990.0,0.77283955]
[1746830870666,0.91100355,103000.0,102990.0,0.88847955]
[1746830870866,0.91100355,103000.0,102990.0,0.88847783]
[1746830873366,0.94240355,103000.0,102990.0,0.88847783]
[1746830873865,1.01368085,103000.0,102990.0,0.88847783]
[1746830874166,0.92391148,103000.0,102990.0,0.88847783]
[1746830877968,0.92391148,103000.0,102990.0,0.88846879]
[1746830879867,0.99518878,103000.0,102990.0,0.88846758]
[1746830880064,0.92391148,103000.0,102990.0,0.88846758]
[1746830881069,0.99518878,103000.0,102990.0,0.88846758]
[1746830881269,1.05898878,103000.0,102990.0,0.77282758]
[1746830882363,1.05898878,103000.0,102990.0,0.57864378]
[1746830882570,1.05898878,103000.0,102990.0,0.77282758]
[1746830883871,1.12381655,103000.0,102990.0,0.77282758]
[1746830884071,1.12381655,103000.0,102990.0,0.74052758]
[1746830884473,1.12381655,103000.0,102990.0,0.74052709]
[1746830885972,1.12381655,103000.0,102990.0,0.77292709]
[1746830887572,0.9601996,103000.0,102990.0,0.77292709]
[1746830889876,0.9601996,103000.0,102990.0,0.77279551]
[1746830890883,1.05893384,103000.0,102990.0,0.77279551]
[1746830891281,1.05893384,103000.0,102990.0,0.41199551]
[1746830891482,1.05893384,103000.0,102990.0,0.77279551]
[1746830892483,1.05893384,103000.0,102990.0,0.77279741]
[1746830893882,1.05893384,103000.0,102990.0,0.57861361]
[1746830894082,1.05893384,103000.0,102990.0,0.37959741]
[1746830894483,1.08368608,103000.0,102990.0,0.37959741]
[1746830895283,1.08368608,103000.0,102990.0,0.37960089]
[1746830897080,1.08368608,103000.0,102990.0,0.3796022]
[1746830897982,1.19928608,103000.0,102990.0,0.3167022]
[1746830898180,1.23941772,103000.0,102990.0,0.3167022]
[1746830898886,1.23941772,103000.0,102990.0,0.31670486]
[1746830900688,1.23941772,103000.0,102990.0,0.31671378]
[1746830901686,1.23941772,103000.0,102990.0,0.34831378]
[1746830902882,1.23941772,103000.0,102990.0,0.41001378]
[1746830904185,1.23941772,103000.0,102990.0,0.18582998]
[1746830904386,1.23941772,103000.0,102990.0,0.12252998]
[1746830907098,1.09686312,103000.0,102990.0,0.12252998]
[1746830907595,1.23941772,103000.0,102990.0,0.12252998]
[1746830908797,1.23941772,103000.0,102990.0,0.10777601]
[1746830909303,1.24041772,103000.0,102990.0,0.10477601]
[1746830909891,1.23941772,103000.0,102990.0,0.10177601]
[1746830911097,1.38784437,103000.0,102990.0,0.09809209]
[1746830911599,1.38784437,103000.0,102990.0,0.29227589]
[1746830911799,1.38784437,103000.0,102990.0,0.32437589]
[1746830912098,1.38784437,103000.0,102990.0,0.39020251]
[1746830914098,1.38784437,103000.0,102990.0,0.16521871]
[1746830914403,1.38784437,103000.0,102990.0,0.10171871]
[1746830916801,1.38784437,103000.0,102990.0,0.10171871]
[1746830917003,1.38784437,103000.0,102990.0,0.11681059]
[1746830918799,1.81992167,103000.0,102990.0,0.0197185]
[1746830919302,1.67149502,103000.0,102990.0,0.0197185]
[1746830920304,1.67149502,103000.0,102990.0,0.00462662]
[1746830920501,1.60021772,103000.0,102990.0,0.00462662]
[1746830923499,1.67149502,103000.0,102990.0,0.00462662]
[1746830924704,1.77339908,103000.0,102990.0,0.00462662]
[1746830926204,1.78788831,103000.0,102990.0,0.00462662]
[1746830927612,1.71661101,103000.0,102990.0,0.00462662]
[1746830927795,1.78788831,103000.0,102990.0,0.00462662]
[1746830928103,1.56249777,103000.0,102990.0,0.00462662]
[1746830929000,0.1941838,102990.0,102980.0,0.0952]
[1746830929200,1.2932384,102990.0,102980.0,0.11028655]
[1746830929500,1.2932384,102990.0,102980.0,0.20737864]
[1746830930210,1.2932384,102990.0,102980.0,0.21037864]
[1746830930809,1.2932384,102990.0,102980.0,0.21137864]
[1746830931208,1.2932384,102990.0,102980.0,0.11617864]
[1746830931812,1.2932384,102990.0,102980.0,0.11617734]
[1746830932013,1.2932384,102990.0,102980.0,0.01908525]
[1746830932215,1.45674315,102990.0,102980.0,0.01908525]
[1746830932715,1.46402315,102990.0,102980.0,0.01908525]
[1746830935215,1.57958315,102990.0,102980.0,0.01908525]
[1746830940120,1.57958315,102990.0,102980.0,0.004]
[1746830940418,1.57958315,102990.0,102980.0,0.08208966]
[1746830941020,1.57958315,102990.0,102980.0,0.08578584]
[1746830941218,1.72761498,102990.0,102980.0,0.08578584]
[1746830945622,1.60424187,102990.0,102980.0,0.08578584]
[1746830949216,1.60424187,102990.0,102980.0,0.08580811]
[1746830951027,1.60424187,102990.0,102980.0,0.08581047]
[1746830951715,1.60424187,102990.0,102980.0,0.11721047]
[1746830952520,1.60424187,102990.0,102980.0,0.11721237]
[1746830954224,1.60424187,102990.0,102980.0,0.05021237]
[1746830954422,0.1942216,102970.0,102960.0,0.67241694]
[1746830954622,0.5954989,102970.0,102960.0,0.67241694]
[1746830954819,0.6276989,102970.0,102960.0,0.76951845]
[1746830955128,0.7876989,102970.0,102960.0,0.76951845]
[1746830955422,0.7886989,102970.0,102960.0,0.77551845]
[1746830955622,0.7814121,102970.0,102960.0,0.77551845]
[1746830956023,0.7814121,102970.0,102960.0,0.78051845]
[1746830957828,0.7814121,102970.0,102960.0,0.87611845]
[1746830959429,1.04398956,102970.0,102960.0,0.87611845]
[1746830960714,1.04298956,102970.0,102960.0,0.87011845]
[1746830960918,1.04298956,102970.0,102960.0,0.87111845]
[1746830961125,1.04298956,102970.0,102960.0,0.86611845]